bitfinex/quotes_ETHUSD_20241120
["timestamp","ask_amount","ask_price","bid_price","bid_amount"]
[1732099984563,3.21266,3112.7,3112.6,0.0757844]
[1732099984766,3.21266,3112.7,3112.5,0.07585097]
[1732099984977,3.21266,3112.7,3112.6,0.07580087]
[1732099985345,3.21266,3112.7,3112.1,0.7692]
[1732099985686,3.21289,3112.5,3112.2,0.07600131]
[1732099987379,3.21235,3113.0,3112.2,0.35332144]
[1732099987380,0.55,3113.0,3112.2,0.35332144]
[1732099987562,3.21251,3112.9,3112.3,0.7721]
[1732099987757,3.21251,3112.9,3112.4,1.92776]
[1732099988083,3.21261,3112.8,3112.4,0.35348721]
[1732099988254,6.42476,3113.0,3112.4,2.00366108]
[1732099988454,3.21253,3112.9,3112.4,2.00366108]
[1732099988765,3.21255,3112.8,3112.4,0.54626319]
[1732099989280,6.42518,3112.8,3112.4,0.54626319]
[1732099989451,3.21255,3112.8,3112.4,0.54626319]
[1732099990275,3.21239,3113.0,3112.4,2.47403319]
[1732099990480,3.21239,3113.0,3112.4,2.47397319]
[1732099990689,3.21249,3112.9,3112.4,2.47397319]
[1732099990888,3.21249,3112.9,3112.5,0.32460732]
[1732099991052,3.21239,3113.0,3112.5,0.32460732]
[1732099991249,3.21243,3112.9,3112.6,0.07583379]
[1732099993097,3.21261,3112.8,3112.6,0.07583379]
[1732099993247,4.57794,3112.7,3112.6,0.07583379]
[1732099993643,3.21292,3112.5,3112.0,2.74777]
[1732099993845,3.21271,3112.7,3112.1,0.274777]
[1732099994158,3.21256,3112.8,3112.3,2.74761]
[1732099994357,3.21256,3112.8,3112.4,0.07596694]
[1732099994988,3.21228,3113.1,3112.5,0.8142]
[1732099995205,3.21214,3113.2,3112.6,1.92764]
[1732099995206,3.76222,3113.2,3112.6,1.92764]
[1732099995362,0.55,3113.2,3112.6,2.47803596]
[1732099995712,0.55,3113.2,3112.6,0.55039596]
[1732099995713,3.21229,3113.1,3112.6,0.55039596]
[1732099996021,3.21219,3113.2,3112.8,0.7702]
[1732099996309,3.21218,3113.2,3112.9,0.07561362]
[1732099996491,6.4244,3113.2,3112.9,0.07561362]
[1732099996804,3.21218,3113.2,3112.9,0.07561362]
[1732099997005,3.21229,3113.1,3112.9,0.07561362]
[1732099997209,3.21218,3113.2,3112.9,0.07561362]
[1732099997508,3.2123,3113.1,3113.0,0.07540507]
[1732099997715,3.2123,3113.1,3112.8,0.7702]
[1732099997883,3.2123,3113.1,3112.9,0.07545515]
[1732099998770,3.2123,3113.1,3112.8,0.7702]
[1732099998967,3.2123,3113.1,3113.0,0.07540507]
[1732099999306,3.2123,3113.1,3113.0,0.07533836]
[1732099999619,3.2123,3113.1,3112.8,0.7702]
[1732099999772,3.2123,3113.1,3113.0,0.0753429]
[1732100000115,3.21244,3112.9,3112.5,0.7678]
[1732100000412,3.21259,3112.8,3112.5,0.7678]
[1732100000620,3.21271,3112.7,3112.2,2.67878]
[1732100000796,3.21271,3112.7,3112.2,0.7509]
[1732100001615,3.21275,3112.6,3112.2,0.7509]
[1732100001764,3.21271,3112.7,3112.2,2.67879]
[1732100002266,6.42544,3112.7,3112.2,2.67879]
[1732100002486,3.21274,3112.6,3112.2,2.67879]
[1732100002737,3.21274,3112.6,3112.2,0.7509]
[1732100002900,3.21256,3112.8,3112.3,1.9278]
[1732100003099,0.7579,3113.0,3112.5,1.92766]
[1732100003100,3.21239,3113.0,3112.5,1.92766]
[1732100003410,3.21214,3113.2,3112.8,0.8172]
[1732100004307,3.21198,3113.4,3112.9,1.92742]
[1732100004507,3.21198,3113.4,3113.0,0.274462]
[1732100004823,3.21198,3113.4,3112.9,1.92742]
[1732100005318,6.42397,3113.4,3112.8,2.74468]
[1732100007223,3.21198,3113.4,3112.8,2.74468]
[1732100007424,3.21198,3113.4,3112.9,0.467222]
[1732100007928,4.04436,3113.8,3113.2,0.7985]
[1732100008219,3.21181,3113.6,3113.2,0.7985]
[1732100008381,3.21181,3113.6,3113.3,0.07483277]
[1732100008789,1.3535,3114.0,3113.2,0.7985]
[1732100008989,3.21161,3113.7,3113.4,0.07478271]
[1732100009225,3.21161,3113.7,3113.3,0.07478276]
[1732100009426,3.2114,3113.9,3113.2,2.72576]
[1732100009627,3.2114,3113.9,3113.3,1.92717]
[1732100009822,3.2114,3113.9,3113.3,2.00195276]
[1732100010024,3.2114,3113.9,3113.5,0.7511]
[1732100010333,3.2114,3113.9,3113.6,0.0746326]
[1732100010511,3.21155,3113.8,3113.6,0.0746326]
[1732100010718,3.21161,3113.7,3113.6,0.0746326]
[1732100012106,3.21175,3113.6,3113.2,0.8195]
[1732100012307,3.21175,3113.6,3113.3,0.07471094]
[1732100012525,3.21175,3113.6,3113.2,0.8195]
[1732100012727,3.21175,3113.6,3113.3,0.07472655]
[1732100012894,3.21156,3113.8,3113.2,0.8195]
[1732100013095,3.21169,3113.7,3113.3,0.07489356]
[1732100013299,6.42338,3113.7,3113.2,0.8195]
[1732100013500,3.21169,3113.7,3113.3,0.07489356]
[1732100013704,6.42336,3113.7,3113.2,0.8195]
[1732100013937,3.21167,3113.7,3113.3,0.07489356]
[1732100014094,6.42334,3113.7,3113.2,0.8195]
[1732100014301,3.21167,3113.7,3113.3,0.07489356]
[1732100014500,3.21146,3113.9,3113.2,0.8195]
[1732100014737,3.21146,3113.9,3113.3,2.00209356]
[1732100014939,3.21124,3114.1,3113.5,1.92708]
[1732100015141,3.21124,3114.1,3113.6,0.07475476]
[1732100015317,3.21131,3114.0,3113.6,0.07475476]
[1732100015652,3.21142,3113.9,3113.6,0.07475476]
[1732100015808,3.21132,3114.0,3113.6,0.07475476]
[1732100016008,3.21132,3114.0,3113.5,1.92705]
[1732100016313,3.21132,3114.0,3113.6,0.0747548]
[1732100016852,3.76117,3114.2,3113.7,2.73694]
[1732100017010,3.21106,3114.3,3113.8,1.92688]
[1732100017208,3.21106,3114.3,3113.8,2.00152328]
[1732100018182,0.33505028,3115.3,3114.2,2.89637155]
[1732100018322,0.33505028,3115.3,3114.7,1.92634]
[1732100018518,3.20995,3115.4,3114.8,0.85992622]
[1732100018519,6.41988,3115.4,3114.8,0.85992622]
[1732100018765,3.20997,3115.3,3114.8,0.85992622]
[1732100019366,9.5767,3115.8,3114.8,0.85992622]
[1732100019367,3.21009,3115.2,3114.8,0.85992622]
[1732100019839,3.20997,3115.3,3114.8,0.85992622]
[1732100021465,3.20979,3115.5,3114.9,1.92619]
[1732100021762,3.8067,3115.8,3115.0,0.07414005]
[1732100021940,3.8067,3115.8,3114.8,0.7857]
[1732100021941,3.20985,3115.5,3114.9,1.92621]
[1732100022143,3.20985,3115.5,3115.0,0.07414005]
[1732100022462,3.20983,3115.5,3114.8,0.7857]
[1732100022666,3.20983,3115.5,3114.8,2.71195]
[1732100022869,3.20988,3115.4,3114.9,0.07420563]
[1732100023236,3.20997,3115.3,3114.9,0.07420563]
[1732100023443,3.21013,3115.2,3114.9,0.07420563]
[1732100023678,3.21017,3115.1,3114.9,0.07420563]
[1732100023967,3.21027,3115.0,3114.9,0.07420563]
[1732100025981,3.21013,3115.2,3114.9,0.07420563]
[1732100026181,3.2102,3115.1,3114.8,0.7857]
[1732100026341,6.42044,3115.1,3114.9,0.07418916]
[1732100026854,3.2102,3115.1,3114.9,0.07418916]
[1732100027466,3.21002,3115.3,3114.9,0.07418916]
[1732100027667,3.21009,3115.2,3114.9,0.07418916]
[1732100027868,3.21009,3115.2,3114.8,0.7857]
[1732100028076,3.21009,3115.2,3115.0,0.07411636]
[1732100028275,3.21009,3115.2,3114.9,0.07416637]
[1732100028447,3.21009,3115.2,3115.1,0.07406635]
[1732100028649,3.21016,3115.1,3115.0,0.07411636]
[1732100028848,3.21016,3115.1,3114.8,0.7857]
[1732100029072,3.21016,3115.1,3115.0,0.07411636]
[1732100029284,3.21016,3115.1,3114.9,0.07416637]
[1732100029597,3.21016,3115.1,3115.0,0.07411636]
[1732100029746,3.21009,3115.2,3115.0,0.07411636]
[1732100030091,3.21009,3115.2,3114.8,0.7857]
[1732100030289,3.21009,3115.2,3115.1,0.07406635]
[1732100030490,3.21009,3115.2,3114.8,0.7857]
[1732100030653,3.21009,3115.2,3115.1,0.07406635]
[1732100030853,3.21009,3115.2,3114.8,0.7857]
[1732100031052,3.21009,3115.2,3115.1,0.07406635]
[1732100031306,3.20986,3115.4,3114.8,0.7857]
[1732100031595,0.55,3115.4,3114.7,1.92629]
[1732100031793,0.55,3115.4,3114.8,0.8314]
[1732100031794,3.21013,3115.2,3114.8,0.8314]
[1732100032250,3.21022,3115.1,3114.8,0.8314]
[1732100032456,3.21027,3115.0,3114.8,0.8314]
[1732100032803,3.21027,3115.0,3114.2,2.89637155]
[1732100032804,0.8097,3115.5,3114.2,0.8295]
[1732100032956,3.21074,3114.6,3114.2,0.8295]
[1732100033162,6.42152,3114.6,3114.2,1.10512]
[1732100033403,3.21074,3114.6,3114.2,0.8295]
[1732100033562,3.21089,3114.4,3114.2,0.8295]
[1732100033897,3.21081,3114.5,3114.2,0.8295]
[1732100035313,3.21074,3114.6,3114.2,0.8295]
[1732100035481,3.21074,3114.6,3114.2,1.105128]
[1732100036111,6.42149,3114.6,3114.2,1.105128]
[1732100036316,3.21074,3114.6,3114.2,1.105128]
[1732100036820,6.4215,3114.6,3114.2,1.105128]
[1732100037005,3.21064,3114.7,3114.2,3.031768]
[1732100037186,3.21064,3114.7,3114.2,2.75614]
[1732100038012,3.21054,3114.8,3114.2,0.8295]
[1732100038237,4.04249,3115.1,3114.2,0.8295]
[1732100038520,3.21076,3114.6,3114.3,0.07166962]
[1732100038745,3.21076,3114.6,3114.2,0.8295]
[1732100038890,3.21076,3114.6,3114.3,0.07166962]
[1732100039288,3.21095,3114.4,3114.2,0.8295]
[1732100039498,3.21118,3114.2,3113.9,0.7763]
[1732100040174,6.42193,3114.4,3113.9,0.7763]
[1732100040379,3.21095,3114.4,3113.9,0.7763]
[1732100040596,3.21095,3114.4,3113.9,2.70313]
[1732100040779,0.55,3114.3,3113.9,2.70313]
[1732100040992,0.55,3114.3,3113.9,0.7763]
[1732100041694,3.21112,3114.2,3113.9,0.7763]
[1732100042004,3.21112,3114.2,3114.0,0.23928968]
[1732100042203,3.21112,3114.2,3114.1,0.23928968]
[1732100042708,3.21112,3114.2,3114.0,0.23928968]
[1732100043005,0.55,3114.2,3113.7,0.7935]
[1732100043205,3.21141,3113.9,3113.8,0.23938301]
[1732100043414,3.76141,3113.9,3113.8,0.23938301]
[1732100043579,3.21175,3113.6,3113.4,0.7935]
[1732100043827,3.21155,3113.8,3113.5,0.23945132]
[1732100044141,3.21174,3113.6,3113.2,0.7943]
[1732100044317,3.21174,3113.6,3113.3,0.23946621]
[1732100044523,3.21174,3113.6,3113.4,0.23946621]
[1732100044777,3.21174,3113.6,3113.5,0.23946621]
[1732100044922,3.21174,3113.6,3113.5,0.23946892]
[1732100045265,3.21174,3113.6,3113.2,0.7943]
[1732100045561,3.21174,3113.6,3113.3,0.23946372]
[1732100045763,3.21174,3113.6,3113.4,0.23946372]
[1732100046068,3.21174,3113.6,3113.5,0.23946372]
[1732100046215,0.55,3113.7,3113.5,0.23946372]
[1732100046412,0.55,3113.7,3113.6,0.23942782]
[1732100046413,3.21161,3113.7,3113.6,0.23942782]
[1732100046647,3.21188,3113.5,3113.2,0.7943]
[1732100046874,3.21188,3113.5,3113.3,0.23943525]
[1732100047053,3.21188,3113.5,3113.4,0.23943525]
[1732100048375,3.21166,3113.7,3113.2,0.7943]
[1732100048564,3.21166,3113.7,3113.4,0.23938819]
[1732100048772,3.21158,3113.8,3113.2,0.7943]
[1732100049086,3.21143,3113.9,3113.4,0.8014]
[1732100049288,3.21143,3113.9,3113.5,0.23932462]
[1732100049472,6.42291,3113.9,3113.6,0.23932462]
[1732100049790,3.21143,3113.9,3113.7,0.23932462]
[1732100049951,3.21143,3113.9,3113.5,0.272856]
[1732100050146,6.4229,3113.9,3113.6,0.239289]
[1732100050461,6.4229,3113.9,3113.7,0.239289]
[1732100050462,3.21143,3113.9,3113.7,0.239289]
[1732100050680,3.21143,3113.9,3113.4,3.001394]
[1732100050862,3.21171,3113.6,3113.5,0.2392863]
[1732100051066,3.21161,3113.7,3113.5,0.2392863]
[1732100051372,3.21146,3113.9,3113.6,0.23927714]
[1732100051715,3.21146,3113.9,3113.4,0.8014]
[1732100052004,3.21154,3113.8,3113.5,0.07241987]
[1732100052146,3.21163,3113.7,3113.5,0.31169635]
[1732100052347,3.21167,3113.7,3113.5,0.07241987]
[1732100052559,6.42337,3113.7,3113.5,0.07241987]
[1732100052786,3.21171,3113.6,3113.5,0.07241987]
[1732100055200,3.21161,3113.7,3113.5,0.07241987]
[1732100055846,6.42329,3113.7,3113.5,0.07241987]
[1732100056058,3.76111,3114.2,3113.5,0.07241987]
[1732100056059,3.21143,3113.9,3113.5,0.07241987]
[1732100056283,3.21161,3113.7,3113.6,0.28009599]
[1732100056595,3.21171,3113.6,3113.4,0.8014]
[1732100057145,3.21181,3113.5,3113.4,0.8014]
[1732100057392,3.21205,3113.3,3113.1,0.8174]
[1732100058300,3.21212,3113.2,3113.1,0.8174]
[1732100058600,3.21171,3113.6,3112.5,0.8126]
[1732100058748,3.2125,3112.9,3112.5,1.10323715]
[1732100058955,3.2125,3112.9,3112.5,0.8126]
[1732100059853,3.21249,3112.9,3112.5,0.8126]
[1732100061993,3.21228,3113.1,3112.5,2.74027]
[1732100062167,3.21228,3113.1,3112.5,3.014297]
[1732100062371,3.21228,3113.1,3112.6,1.92763]
[1732100063273,6.42458,3113.1,3112.5,3.014297]
[1732100063471,3.21228,3113.1,3112.5,4.941967]
[1732100063787,3.21228,3113.1,3112.6,0.4941967]
[1732100064180,6.42458,3113.1,3112.6,0.4941967]
[1732100064711,3.21234,3113.0,3112.6,0.4941967]
[1732100065010,3.21229,3113.1,3112.6,1.9276]
[1732100065220,3.21229,3113.1,3112.5,2.74027]
[1732100065385,3.21229,3113.1,3112.6,0.466804]
[1732100065574,3.21209,3113.3,3112.6,0.466804]
[1732100065773,3.21234,3113.0,3112.6,0.466804]
[1732100065973,3.21214,3113.2,3112.6,0.466804]
[1732100066207,3.21249,3112.9,3112.5,0.8126]
[1732100066684,6.42501,3112.9,3112.5,0.8126]
[1732100066876,6.42501,3112.9,3112.5,1.086635]
[1732100067080,3.21249,3112.9,3112.5,1.086635]
[1732100068171,3.21249,3112.9,3112.6,0.07271151]
[1732100069417,6.42501,3112.9,3112.6,0.07271151]
[1732100069586,3.21249,3112.9,3112.6,0.07271151]
[1732100070068,6.425,3112.9,3112.6,0.07271151]
[1732100070272,3.21249,3112.9,3112.6,0.07271151]
[1732100070515,3.2126,3112.8,3112.6,0.07271151]
[1732100070713,3.21202,3113.3,3112.6,0.07271151]
[1732100070900,3.21259,3112.8,3112.6,0.07271151]
[1732100071104,3.21244,3112.9,3112.6,0.07271151]
[1732100071475,3.21258,3112.8,3112.6,0.07271151]
[1732100072404,3.21229,3113.1,3112.6,0.07271151]
[1732100072808,3.21239,3113.0,3112.6,0.07271151]
[1732100073011,3.21239,3113.0,3112.6,0.35401866]
[1732100073415,3.21248,3112.9,3112.6,0.07271151]
[1732100073590,3.21239,3113.0,3112.6,0.07271151]
[1732100073591,3.21219,3113.2,3112.6,0.07271151]
[1732100073788,3.21233,3113.0,3112.6,0.07271151]
[1732100074000,3.21228,3113.1,3112.6,0.07271151]
[1732100074297,3.21233,3113.0,3112.6,0.35401966]
[1732100074815,3.21228,3113.1,3112.6,0.35401966]
[1732100075027,3.21245,3112.9,3112.6,0.35401966]
[1732100075679,3.21263,3112.8,3112.6,0.35401966]
[1732100075912,3.21254,3112.8,3112.6,0.07271151]
[1732100076120,3.21264,3112.7,3112.6,0.07271151]
[1732100076817,3.21254,3112.8,3112.6,0.07271151]
[1732100076978,3.21264,3112.7,3112.6,0.07271151]
[1732100077423,3.21254,3112.8,3112.6,0.07271151]
[1732100077928,0.55,3113.1,3112.6,0.07271151]
[1732100078080,3.21244,3112.9,3112.6,0.07271151]
[1732100078285,3.21244,3112.9,3112.6,0.35401566]
[1732100079429,3.21261,3112.8,3112.6,0.35401566]
[1732100079723,3.21261,3112.8,3112.6,0.07271151]
[1732100080483,3.21264,3112.7,3112.6,0.07271151]
[1732100080934,3.21261,3112.8,3112.6,0.07271151]
[1732100082088,3.21254,3112.8,3112.6,0.07271151]
[1732100083687,3.21234,3113.0,3112.6,0.07271151]
[1732100084008,3.21245,3112.9,3112.6,0.07271151]
[1732100084605,3.21245,3112.9,3112.6,0.35401866]
[1732100085003,0.7907,3113.7,3112.7,0.8106]
[1732100085226,3.21212,3113.3,3112.8,0.07268634]
[1732100085432,3.21219,3113.2,3112.7,0.8106]
[1732100085595,3.21219,3113.2,3112.8,0.34650634]
[1732100085996,7.00238,3113.7,3113.0,2.70089]
[1732100085997,3.21191,3113.5,3113.0,2.70089]
[1732100086231,3.21191,3113.5,3113.1,0.34262511]
[1732100086600,3.21212,3113.2,3113.1,0.07253611]
[1732100087191,3.21224,3113.1,3112.7,0.7735]
[1732100087392,3.21224,3113.1,3112.7,1.17714157]
[1732100087636,3.21224,3113.1,3112.8,0.07268634]
[1732100087936,3.21224,3113.1,3112.7,1.17714157]
[1732100088093,3.21224,3113.1,3112.9,0.0727532]
[1732100088297,3.21224,3113.1,3112.8,0.07280329]
[1732100088298,3.21239,3113.0,3112.8,0.07280329]
[1732100088605,3.21239,3113.0,3112.7,0.7735]
[1732100090674,3.21251,3112.9,3112.4,0.7885]
[1732100091175,3.76179,3113.6,3112.7,0.7885]
[1732100091379,3.76179,3113.6,3112.4,3.19735866]
[1732100091380,3.21188,3113.5,3113.0,0.7885]
[1732100091983,4.00897,3113.8,3113.2,1.92723]
[1732100092139,8.77,3113.8,3113.3,0.7885]
[1732100092844,11.98156,3113.8,3113.3,0.7885]
[1732100093041,3.21161,3113.7,3113.3,0.7885]
[1732100095472,3.21178,3113.6,3113.3,0.7885]
[1732100095650,3.21182,3113.5,3113.3,0.7885]
[1732100095852,3.21192,3113.4,3113.0,0.7885]
[1732100096166,3.21207,3113.3,3113.0,0.7885]
[1732100098263,3.21207,3113.3,3113.1,0.07281958]
[1732100101450,3.21212,3113.2,3113.1,0.07281958]
[1732100101647,3.21254,3112.8,3112.7,0.8258]
[1732100101851,3.21254,3112.8,3112.7,0.89902012]
[1732100103365,3.21254,3112.8,3112.7,0.07322012]
[1732100103792,3.21269,3112.7,3112.4,0.7552]
[1732100104009,3.21254,3112.8,3112.4,0.7552]
[1732100104213,3.21278,3112.6,3112.4,0.7552]
[1732100104408,3.21278,3112.6,3111.9,1.92807]
[1732100104714,3.21278,3112.6,3112.1,2.120742]
[1732100105286,3.21296,3112.4,3112.0,0.7674]
[1732100105872,3.21306,3112.3,3112.0,0.7674]
[1732100106574,3.21307,3112.3,3112.0,0.7674]
[1732100106776,3.21325,3112.2,3111.7,0.7947]
[1732100106975,3.21325,3112.2,3111.7,1.34443041]
[1732100107214,3.21322,3112.2,3111.7,1.34443041]
[1732100107414,3.21333,3112.1,3111.7,1.34443041]
[1732100108340,0.7662,3112.4,3111.7,1.34443041]
[1732100108889,0.55,3112.3,3111.7,1.34443041]
[1732100109522,0.55,3112.3,3111.7,0.7947]
[1732100111409,3.76305,3112.3,3111.3,0.8077]
[1732100111596,0.55,3112.3,3111.4,1.92837]
[1732100112222,0.55,3112.3,3111.3,2.73614]
[1732100112434,0.55,3112.3,3111.3,4.66456]
[1732100112638,0.55,3112.3,3111.3,2.73612]
[1732100113043,0.55,3112.3,3111.4,0.23943922]
[1732100113347,0.55,3112.3,3111.3,2.73612]
[1732100113348,3.7631,3112.3,3111.5,0.31330174]
[1732100113499,3.7631,3112.3,3111.6,0.23943922]
[1732100113500,0.55,3112.3,3111.6,0.23943922]
[1732100113700,0.55,3112.3,3111.7,0.23943922]
[1732100113960,0.55,3112.3,3111.7,0.07376224]
[1732100114123,0.55,3112.3,3111.5,1.92827]
[1732100114451,0.55,3112.3,3111.6,0.31312027]
[1732100114623,3.76308,3112.3,3111.6,0.07381238]
[1732100114830,3.76308,3112.3,3111.3,0.8077]
[1732100114999,0.55,3111.8,3111.4,0.23928445]
[1732100115209,0.55,3111.8,3111.5,0.23928445]
[1732100115413,0.55,3111.8,3111.6,0.07381238]
[1732100115648,0.55,3111.8,3111.1,0.7865]
[1732100115817,0.55,3111.8,3111.2,0.31324311]
[1732100116021,0.7766,3111.7,3111.3,0.23923015]
[1732100116256,0.7766,3111.7,3110.8,2.73053]
[1732100116257,0.55,3111.6,3111.4,0.07391266]
[1732100116627,0.55,3111.6,3110.8,2.73053]
[1732100116953,0.55,3111.6,3110.9,2.24200248]
[1732100117253,0.55,3111.6,3111.0,0.23907723]
[1732100117555,0.55,3111.6,3111.1,0.07390417]
[1732100117866,0.55,3111.6,3110.9,1.92866]
[1732100118163,0.55,3111.6,3111.0,0.07395432]
[1732100118520,0.55,3111.6,3111.0,2.00254432]
[1732100118718,0.55,3111.6,3111.1,1.92856]
[1732100118932,0.55,3111.6,3111.0,2.00254432]
[1732100119155,0.55,3111.6,3111.2,0.07385402]
[1732100119314,0.55,3111.6,3111.1,0.07390417]
[1732100119522,0.55,3111.6,3111.3,0.07380388]
[1732100119716,0.55,3111.6,3110.8,2.73053]
[1732100119916,3.76378,3111.6,3111.4,0.07382887]
[1732100120117,3.76378,3111.6,3110.8,4.65925]
[1732100120357,0.55,3111.4,3110.8,2.73052]
[1732100120577,0.55,3111.4,3110.9,2.00300198]
[1732100120734,0.55,3111.4,3110.9,0.07431198]
[1732100121059,0.55,3111.4,3110.9,2.00297198]
[1732100121634,0.55,3111.4,3111.0,1.92862]
[1732100121835,0.55,3111.4,3111.1,0.07422724]
[1732100122037,0.55,3111.4,3111.1,2.00276724]
[1732100122964,0.8157,3111.8,3111.3,2.71665]
[1732100123115,0.55,3111.9,3111.6,1.92823]
[1732100123564,0.55,3111.9,3111.7,0.07387038]
[1732100124522,0.55,3111.9,3111.5,1.92832]
[1732100124723,0.55,3112.0,3111.8,0.07382024]
[1732100124967,0.55,3112.0,3111.4,3.85671]
[1732100125262,0.55,3112.0,3111.5,1.92829]
[1732100125568,0.55,3112.0,3111.6,0.07392052]
[1732100125919,0.55,3111.8,3111.6,0.07392052]
[1732100126128,0.55,3111.8,3111.1,1.92857]
[1732100126325,0.55,3111.8,3111.7,0.07387038]
[1732100126553,0.55,3111.8,3111.1,1.92857]
[1732100127091,0.55,3111.8,3111.3,1.92839]
[1732100127253,0.55,3111.8,3111.5,1.92829]
[1732100127451,0.55,3111.8,3111.6,0.07392052]
[1732100128303,2.89360416,3112.5,3111.6,0.07392052]
[1732100128304,0.7677,3112.5,3111.8,1.92814]
[1732100128456,6.98055,3112.5,3111.8,1.92814]
[1732100128811,3.7677,3112.5,3111.9,0.0737701]
[1732100129210,3.7677,3112.5,3111.8,1.9281]
[1732100129396,0.8209,3112.2,3111.4,2.72125]
[1732100129570,0.55,3112.1,3111.9,0.0737701]
[1732100129759,0.55,3112.1,3111.7,1.9282]
[1732100130318,0.55,3112.1,3111.8,0.07382024]
[1732100130677,0.55,3112.1,3111.9,1.92807]
[1732100130876,0.55,3112.1,3112.0,0.07371997]
[1732100131300,0.8209,3112.2,3112.0,0.07371997]
[1732100131660,0.8209,3112.2,3111.5,1.92827]
[1732100131661,4.03409,3112.2,3111.5,1.92827]
[1732100131905,0.55,3112.1,3111.6,0.07392052]
[1732100132405,0.55,3112.1,3111.5,1.92832]
[1732100132572,0.55,3112.1,3111.7,0.07387038]
[1732100132906,0.55,3112.1,3111.8,0.07382024]
[1732100133065,3.76331,3112.1,3111.8,0.07382024]
[1732100133377,3.76331,3112.1,3111.4,2.72125]
[1732100133579,3.76331,3112.1,3111.9,0.0737701]
[1732100133775,0.55,3112.1,3111.6,1.92824]
[1732100133989,0.55,3112.1,3112.0,0.07371997]
[1732100134224,0.8209,3112.2,3111.8,1.9281]
[1732100134626,0.8209,3112.2,3111.9,0.0737701]
[1732100134942,8.77,3112.4,3111.9,2.8208401]
[1732100134943,0.55,3112.3,3111.9,2.8208401]
[1732100135442,0.8209,3112.7,3111.9,1.17485411]
[1732100135643,0.8209,3112.7,3112.2,1.92784]
[1732100135828,0.8209,3112.7,3112.3,1.92782]
[1732100136145,0.8209,3112.7,3112.3,3.92893875]
[1732100136340,3.21218,3113.2,3112.4,1.92771]
[1732100136556,0.8152,3113.1,3112.3,0.07331875]
[1732100136702,4.02743,3113.1,3112.5,0.07321853]
[1732100136899,4.02743,3113.1,3112.1,1.92794]
[1732100136900,0.8255,3112.8,3112.4,0.07321847]
[1732100137114,0.8255,3112.8,3112.1,1.92794]
[1732100137115,0.8255,3112.8,3112.6,0.07311826]
[1732100137408,0.8255,3112.8,3112.5,0.07316836]
[1732100137629,1.3755,3112.8,3112.3,1.9278]
[1732100137876,0.55,3112.7,3112.3,1.92779]
[1732100138028,0.55,3112.7,3112.4,0.07321847]
[1732100139023,0.55,3112.7,3112.1,1.92795]
[1732100139543,0.55,3112.7,3112.2,0.07288485]
[1732100140244,0.55,3112.7,3112.2,1.92784]
[1732100140560,0.55,3112.7,3112.3,0.07283474]
[1732100141003,0.7547,3113.1,3112.7,1.92753]
[1732100141201,0.8143,3113.5,3113.0,1.9274]
[1732100141437,0.8143,3113.5,3113.1,1.99975397]
[1732100141842,0.8143,3113.5,3113.1,0.07243397]
[1732100142043,0.8143,3113.5,3113.0,1.92739]
[1732100142203,0.8143,3113.5,3113.1,0.07243397]
[1732100142609,0.8143,3113.5,3113.0,1.92739]
[1732100143319,0.55,3113.4,3113.1,0.07243397]
[1732100143504,0.55,3113.4,3113.1,1.99973397]
[1732100143702,0.55,3113.4,3113.2,1.92726]
[1732100143943,1.3264,3113.7,3113.2,3.85449]
[1732100144255,1.3264,3113.7,3113.3,1.99953381]
[1732100144620,1.3264,3113.7,3113.3,0.07233381]
[1732100144818,1.3264,3113.7,3113.2,2.72963]
[1732100145653,0.55,3113.9,3113.3,0.07233381]
[1732100145855,0.55,3113.9,3113.4,1.92711]
[1732100146056,0.55,3113.9,3113.5,0.07207514]
[1732100146218,3.76141,3113.9,3113.2,4.65688]
[1732100146411,0.55,3113.7,3113.3,0.07217528]
[1732100146618,0.55,3113.7,3113.2,2.72962]
[1732100146854,3.21161,3113.7,3113.3,0.07217528]
[1732100147052,0.7699,3113.6,3113.1,1.9273]
[1732100147563,0.7699,3113.6,3113.2,0.07242596]
[1732100148161,0.7699,3113.6,3113.2,1.99968596]
[1732100148664,0.55,3113.5,3113.2,0.07242596]
[1732100149197,0.55,3113.5,3113.1,1.92733]
[1732100149560,0.55,3113.5,3113.0,1.92735]
[1732100149853,0.55,3113.5,3112.9,0.8326]
[1732100150044,3.21193,3113.4,3112.9,2.76002]
[1732100150243,3.76191,3113.5,3113.0,0.07252613]
[1732100150551,3.76191,3113.5,3113.0,1.99989613]
[1732100154663,3.76188,3113.5,3113.0,1.99989613]
[1732100154928,3.21195,3113.4,3113.0,0.07252613]
[1732100156230,0.55,3113.2,3113.0,0.07252613]
[1732100156430,0.55,3113.1,3112.7,0.8082]
[1732100156777,3.99973,3113.1,3112.8,0.07252921]
[1732100157142,3.99973,3113.1,3112.7,0.8082]
[1732100157473,3.99973,3113.1,3112.8,0.07252921]
[1732100157634,3.99973,3113.1,3112.7,0.8082]
[1732100157829,3.99973,3113.1,3112.8,0.07252921]
[1732100158130,3.99973,3113.1,3112.7,0.8082]
[1732100158447,3.99973,3113.1,3112.8,0.07252921]
[1732100158653,3.99973,3113.1,3112.7,0.8082]
[1732100158844,3.99973,3113.1,3112.8,0.07252921]
[1732100159057,3.99973,3113.1,3112.7,0.8082]
[1732100159369,3.99973,3113.1,3112.8,0.07252921]
[1732100159875,3.99973,3113.1,3112.7,0.8082]
[1732100160032,0.7875,3113.1,3112.8,0.07252921]
[1732100160229,3.21243,3112.9,3112.4,0.8307]
[1732100160442,3.21265,3112.7,3112.5,0.0726795]
[1732100160842,0.55,3113.0,3112.5,0.0726795]
[1732100161049,3.76274,3112.6,3112.5,0.0726795]
[1732100161249,0.55,3112.5,3112.1,0.7506]
[1732100161551,3.76285,3112.5,3112.2,0.07283959]